bitfinex-derivatives/quotes_SOLF0:USTF0_20241217
["timestamp","ask_amount","ask_price","bid_price","bid_amount"]
[1734431498251,2.2519,222.07,221.97,7.56726969]
[1734431498452,17.10737366,222.1,221.98,2.36]
[1734431498648,17.10737366,222.1,221.97,5.31446969]
[1734431498948,17.10737366,222.14,221.99,2.36]
[1734431499453,17.10737366,222.1,221.97,5.31446969]
[1734431499848,17.10737366,222.1,221.97,7.67446969]
[1734431500248,17.10737366,221.98,221.83,2.36]
[1734431500446,19.46737366,222.09,221.84,3.8774]
[1734431500447,17.10737366,222.02,221.84,3.8774]
[1734431500654,17.10737366,222.02,221.92,2.2533]
[1734431500849,19.46737366,222.06,221.92,2.36]
[1734431501050,17.10737366,222.06,221.93,2.9869]
[1734431501247,19.35937366,222.06,221.95,2.253]
[1734431501448,17.10737366,222.06,221.95,2.253]
[1734431501657,17.10737366,222.06,221.96,2.36]
[1734431501851,17.10737366,222.06,221.95,2.253]
[1734431501852,17.10737366,222.06,221.97,2.36]
[1734431502657,17.10737366,222.06,221.97,4.6128]
[1734431502859,17.10737366,222.06,221.97,2.36]
[1734431503155,17.10737366,222.06,221.98,2.2527]
[1734431503355,2.36,222.09,221.98,2.2527]
[1734431503860,2.36,222.09,221.97,2.36]
[1734431505157,2.2521,222.05,221.97,2.36]
[1734431505953,2.2525,222.01,221.85,5.39810622]
[1734431506158,17.10737366,222.09,221.86,5.5043]
[1734431506159,17.10737366,222.02,221.86,5.5043]
[1734431506557,19.35937366,222.06,221.89,17.10737366]
[1734431506759,17.10737366,222.06,221.89,17.10737366]
[1734431507856,2.2519,222.07,221.89,17.10737366]
[1734431508057,2.44,222.09,221.89,17.10737366]
[1734431508461,2.2519,222.06,221.9,2.44]
[1734431508765,2.2519,222.06,221.97,5.28860651]
[1734431509062,2.2519,222.06,221.98,2.44]
[1734431509666,2.2519,222.06,221.99,2.2526]
[1734431511168,2.2518,222.07,222.0,2.2525]
[1734431511364,2.44,222.09,222.0,2.2525]
[1734431511865,2.2519,222.06,221.98,5.5288]
[1734431512664,2.2519,222.06,222.0,2.2525]
[1734431513171,17.10737366,222.06,221.98,3.0888]
[1734431514467,17.10737366,222.06,221.97,2.2528]
[1734431514468,2.2523,222.03,221.97,2.2528]
[1734431514770,2.2523,222.03,221.93,2.44]
[1734431515177,2.2523,222.03,221.98,2.2527]
[1734431515967,2.44,222.09,221.93,2.2532]
[1734431515968,2.2527,221.99,221.93,2.2532]
[1734431516175,17.10737366,222.02,221.93,2.2532]
[1734431516368,17.10737366,222.02,221.91,2.44]
[1734431517870,5.33861402,222.11,221.91,2.44]
[1734431517871,17.10737366,222.07,221.91,2.44]
[1734431518065,10.71819825,222.07,221.94,10.71819825]
[1734431518369,10.71819825,222.04,221.95,1.6043]
[1734431518578,2.2524,222.01,221.96,4.6928]
[1734431518870,10.71819825,222.04,221.93,2.44]
[1734431519869,10.71819825,222.04,222.0,2.2524]
[1734431520075,10.71819825,222.04,221.98,2.44]
[1734431520978,10.71819825,222.04,222.01,2.2524]
[1734431521377,2.44,222.1,221.98,2.44]
[1734431521378,12.97009825,222.07,221.98,2.44]
[1734431521572,10.71819825,222.07,221.98,2.44]
[1734431522573,10.71819825,222.07,222.04,2.252]
[1734431523074,10.71819825,222.1,222.03,2.44]
[1734431523874,10.71819825,222.07,221.97,5.28783946]
[1734431524376,10.71819825,222.07,221.98,2.44]
[1734431524682,10.71819825,222.07,221.99,2.44]
[1734431524881,12.97009825,222.07,222.02,2.2523]
[1734431525478,10.71819825,222.07,222.03,2.2522]
[1734431526177,10.71819825,222.1,221.99,2.44]
[1734431526385,10.71819825,222.1,222.0,2.9717]
[1734431527083,10.71819825,222.1,222.01,1.5852]
[1734431527282,10.71819825,222.15,222.02,10.71819825]
[1734431527485,10.71819825,222.12,222.05,2.2519]
[1734431527687,10.71819825,222.12,221.97,16.00603771]
[1734431527884,10.71819825,222.12,222.01,2.44]
[1734431528281,2.2519,222.07,222.03,2.2522]
[1734431531089,2.2519,222.07,222.04,2.2521]
[1734431531285,10.71819825,222.15,222.03,10.71819825]
[1734431531886,10.71819825,222.15,222.08,2.2517]
[1734431532086,2.2513,222.13,222.06,2.44]
[1734431532287,2.2513,222.13,222.09,2.2516]
[1734431533092,2.2511,222.14,222.06,2.44]
[1734431533284,10.71819825,222.18,222.06,13.15819825]
[1734431533691,2.2509,222.17,222.12,2.2513]
[1734431533992,10.71819825,222.18,222.12,2.2513]
[1734431534386,10.71819825,222.18,222.05,18.34529533]
[1734431534387,10.71819825,222.21,222.11,2.46]
[1734431534588,13.17819825,222.24,222.17,2.2508]
[1734431534786,2.2503,222.22,222.12,13.17819825]
[1734431534993,10.71819825,222.24,222.12,13.17819825]
[1734431535193,10.71819825,222.31,222.12,13.17819825]
[1734431535194,10.71819825,222.27,222.12,13.17819825]
[1734431535394,2.2502,222.24,222.12,13.17819825]
[1734431535595,10.71819825,222.27,222.15,10.71819825]
[1734431535786,2.2501,222.24,222.15,10.71819825]
[1734431535989,2.2501,222.24,222.12,19.57943634]
[1734431536590,17.11943634,222.26,222.13,2.46]
[1734431536994,17.11943634,222.22,222.13,2.46]
[1734431537188,2.2507,222.18,222.14,2.46]
[1734431538100,2.2506,222.19,222.14,4.711]
[1734431538707,17.11943634,222.22,222.1,3.0108]
[1734431538998,17.11943634,222.18,222.11,2.46]
[1734431539197,17.11943634,222.18,222.09,2.46]
[1734431539397,17.11943634,222.18,222.07,2.46]
[1734431539800,2.2516,222.1,222.07,2.46]
[1734431540196,2.2516,222.1,222.06,2.2519]
[1734431540697,2.2514,222.11,222.06,2.2519]
[1734431542500,2.2516,222.09,222.05,2.46]
[1734431543304,2.2515,222.11,222.06,2.2519]
[1734431543899,2.2515,222.11,222.05,2.46]
[1734431543900,5.42638691,222.16,222.07,2.2517]
[1734431544099,17.11943634,222.18,222.05,2.46]
[1734431544295,17.11943634,222.18,222.08,2.2517]
[1734431544500,17.11943634,222.18,222.08,2.46]
[1734431544696,2.2514,222.11,222.06,2.46]
[1734431545399,2.2514,222.11,222.06,4.7118]
[1734431546407,2.2514,222.11,222.07,2.2518]
[1734431546703,2.2517,222.08,222.06,2.46]
[1734431546905,2.46,222.17,222.06,2.46]
[1734431547304,2.2517,222.09,222.06,2.46]
[1734431548101,2.46,222.17,222.02,8.35926902]
[1734431548305,2.2517,222.09,222.04,2.2521]
[1734431549899,17.11943634,222.14,222.02,8.35926902]
[1734431550099,17.11943634,222.14,222.04,2.252]
[1734431550404,17.11943634,222.1,221.98,2.46]
[1734431550602,2.2519,222.07,221.99,2.2526]
[1734431550806,17.11943634,222.1,221.99,2.2526]
[1734431551208,17.11943634,222.1,221.97,2.2528]
[1734431551405,17.11943634,222.1,221.98,2.46]
[1734431551709,2.2519,222.07,222.0,2.2524]
[1734431552005,17.11943634,222.1,221.98,2.46]
[1734431552309,2.2522,222.04,222.0,2.2525]
[1734431552509,17.11943634,222.1,222.0,2.2525]
[1734431553314,17.11943634,222.1,221.98,2.46]
[1734431553512,2.2522,222.03,221.98,2.46]
[1734431553806,5.51668063,222.13,221.98,2.46]
[1734431554111,2.2515,222.1,222.06,2.2518]
[1734431554306,5.4227404,222.15,222.06,2.46]
[1734431554505,2.2518,222.07,222.06,2.46]
[1734431555406,2.252,222.06,222.01,2.2524]
[1734431555602,5.4227404,222.15,222.02,2.46]
[1734431555603,17.11943634,222.12,222.02,2.46]
[1734431555808,19.57943634,222.12,222.02,2.46]
[1734431556004,2.2521,222.05,222.0,2.2525]
[1734431556211,2.2521,222.05,222.01,2.46]
[1734431556810,2.2521,222.05,222.01,4.7124]
[1734431558810,2.2517,222.08,222.01,2.46]
[1734431559015,10.71823046,222.11,222.01,2.46]
[1734431559215,2.2516,222.1,222.05,2.2519]
[1734431560415,2.2516,222.09,222.05,2.2519]
[1734431560607,10.71823046,222.11,222.04,2.2521]
[1734431562620,2.2518,222.08,222.04,2.2521]
[1734431562920,10.71823046,222.11,222.06,2.2519]
[1734431563115,10.71823046,222.14,222.06,4.7119]
[1734431563809,5.4227404,222.15,222.06,2.46]
[1734431563810,2.2517,222.08,222.06,2.46]
[1734431564015,2.2517,222.08,222.06,2.48]
[1734431564421,10.71823046,222.11,222.04,2.2521]
[1734431564715,2.2518,222.07,222.04,4.7321]
[1734431566220,10.71823046,222.11,222.04,4.7321]
[1734431566420,10.71823046,222.14,222.07,2.2518]
[1734431566719,10.71823046,222.14,222.04,2.48]
[1734431567615,2.48,222.27,222.09,10.71823046]
[1734431567822,10.71823046,222.24,222.1,2.48]
[1734431568020,10.71823046,222.24,222.1,4.0123]
[1734431568214,2.2507,222.19,222.15,2.2509]
[1734431568417,10.71823046,222.18,222.11,2.48]
[1734431568922,2.2512,222.14,222.11,2.48]
[1734431570122,10.71823046,222.18,222.1,2.2515]
[1734431570320,10.71823046,222.18,222.1,4.7315]
[1734431570823,10.71823046,222.18,222.11,2.2514]
[1734431571025,10.71823046,222.18,222.1,2.48]
[1734431571324,10.71823046,222.21,222.1,2.48]
[1734431571726,5.36882983,222.24,222.1,2.48]
[1734431571727,2.2505,222.2,222.1,2.48]
[1734431571927,2.2505,222.2,222.11,1.5181]
[1734431572225,2.2506,222.2,222.11,1.5181]
[1734431572824,2.2506,222.2,222.17,2.2508]
[1734431573019,2.2501,222.25,222.18,2.48]
[1734431573226,10.71823046,222.27,222.18,2.48]
[1734431573423,10.71823046,222.27,222.19,2.2506]
[1734431573620,2.2503,222.23,222.19,2.2506]
[1734431573927,10.71823046,222.27,222.18,2.48]
[1734431574123,16.21111068,222.27,222.18,4.7307]
[1734431574326,16.21111068,222.27,222.18,2.48]
[1734431574530,4.4967,222.42,222.18,13.19823046]
[1734431574719,10.71823046,222.32,222.19,3.0029]
[1734431575123,2.2496,222.29,222.19,3.0029]
[1734431575322,10.71823046,222.32,222.19,3.0029]
[1734431575723,2.2497,222.29,222.19,3.0029]
[1734431575926,2.2497,222.29,222.24,2.2501]
[1734431576123,10.71823046,222.29,222.19,3.0029]
[1734431576424,10.71823046,222.26,222.2,4.7305]
[1734431576628,10.71823046,222.29,222.2,2.48]
[1734431577530,2.2498,222.27,222.22,2.2502]
[1734431577923,10.71823046,222.29,222.2,2.48]
[1734431578323,2.2497,222.28,222.2,2.48]
[1734431578727,4.4967,222.42,222.21,10.71823046]
[1734431579028,10.71823046,222.26,222.19,3.0029]
[1734431579328,2.2503,222.22,222.19,3.0029]
[1734431579526,10.71823046,222.26,222.19,3.0029]
[1734431579731,10.71823046,222.27,222.19,3.0029]
[1734431580123,2.2503,222.23,222.19,3.0029]
[1734431581428,2.2501,222.24,222.19,3.0029]
[1734431581632,10.71823046,222.27,222.19,3.0029]
[1734431582232,10.71823046,222.24,222.15,2.48]
[1734431582735,2.2504,222.22,222.17,2.2508]
[1734431582931,10.71823046,222.24,222.17,2.2508]
[1734431583124,2.2503,222.22,222.17,2.2508]
[1734431583632,10.71823046,222.24,222.17,2.2508]
[1734431585135,2.2503,222.22,222.17,2.2508]
[1734431585334,10.71823046,222.24,222.17,2.2508]
[1734431585728,2.2503,222.22,222.18,2.2507]
[1734431585928,2.48,222.32,222.16,10.71823046]
[1734431585929,10.71823046,222.28,222.16,10.71823046]
[1734431586131,2.25,222.26,222.16,10.71823046]
[1734431586337,2.25,222.26,222.21,2.2504]
[1734431586636,2.25,222.26,222.22,2.48]
[1734431587041,2.25,222.26,222.22,4.7303]
[1734431587330,10.71823046,222.33,222.22,2.48]
[1734431588032,10.71823046,222.27,222.2,2.2505]
[1734431588335,2.48,222.34,222.2,2.2505]
[1734431588533,2.2501,222.24,222.2,2.2505]
[1734431588935,2.2502,222.23,222.2,2.2505]
[1734431589128,10.71823046,222.28,222.2,2.2505]
[1734431589627,10.71823046,222.28,222.2,4.7305]
[1734431590838,2.2501,222.25,222.2,4.7305]
[1734431591641,2.2501,222.24,222.2,4.7305]
[1734431593042,2.2501,222.24,222.2,2.48]
[1734431593242,2.25,222.25,222.21,2.2503]
[1734431593741,2.2501,222.24,222.21,2.2503]
[1734431594045,10.71823046,222.25,222.15,2.2509]
[1734431594345,10.71823046,222.25,222.15,2.42]
[1734431594748,2.2506,222.2,222.16,2.2509]
[1734431595043,10.71823046,222.25,222.15,2.42]
[1734431595249,13.13823046,222.28,222.15,2.42]
[1734431595438,10.71823046,222.28,222.15,2.42]
[1734431596041,2.2502,222.24,222.2,2.2505]
[1734431596237,2.2502,222.24,222.2,4.6705]
[1734431596941,2.2502,222.23,222.2,2.42]
[1734431597144,10.71823046,222.28,222.2,2.42]
[1734431597641,2.2504,222.21,222.2,2.42]
[1734431598747,2.2506,222.2,222.16,4.6709]
[1734431599244,2.42,222.27,222.16,2.42]
[1734431599437,2.42,222.27,222.19,2.2506]
[1734431599638,2.42,222.27,222.16,2.42]
[1734431600043,2.42,222.27,222.18,2.2507]
[1734431600446,2.42,222.27,222.16,2.42]
[1734431600754,2.2504,222.22,222.19,2.2506]
[1734431601244,2.2504,222.21,222.19,2.42]
[1734431601751,2.2506,222.19,222.15,2.2509]
[1734431601949,10.71823046,222.22,222.13,2.42]
[1734431602149,10.71823046,222.22,222.11,3.0686]
[1734431602446,10.71823046,222.22,222.11,5.4886]
[1734431602649,2.42,222.26,222.11,5.4886]
[1734431602942,2.2509,222.16,222.13,2.2511]
[1734431603348,10.71823046,222.23,222.11,5.4886]
[1734431603847,13.13823046,222.26,222.11,16.20683046]
[1734431604048,13.13823046,222.26,222.17,2.2508]
[1734431604744,13.13823046,222.26,222.16,2.42]
[1734431605147,2.2505,222.21,222.17,2.2508]
[1734431605850,2.2501,222.25,222.17,10.71823046]
[1734431606241,2.2501,222.24,222.17,10.71823046]
[1734431606445,2.2501,222.24,222.2,2.2504]
[1734431606745,2.2501,222.24,222.21,2.42]
[1734431607245,2.2503,222.22,222.21,2.42]
[1734431610150,2.42,222.31,222.11,3.0686]
[1734431610151,2.2509,222.16,222.11,3.0686]
[1734431610452,10.71823046,222.21,222.12,2.42]
[1734431610751,2.251,222.16,222.12,4.6713]
[1734431612054,2.251,222.16,222.13,2.2512]
[1734431613151,2.42,222.23,222.12,2.42]
[1734431613546,10.71823046,222.24,222.12,2.42]
[1734431613945,10.71823046,222.24,222.15,2.251]
[1734431614152,10.71823046,222.21,222.12,2.42]
[1734431614355,10.71823046,222.21,222.12,4.6713]
[1734431614953,2.2507,222.19,222.12,4.6713]
[1734431615153,10.71823046,222.21,222.12,4.6713]
[1734431615355,10.71823046,222.18,222.1,2.42]
[1734431615549,2.2513,222.13,222.1,2.42]
[1734431615749,2.2513,222.13,222.09,3.8804]
[1734431615957,10.71823046,222.18,222.09,3.8804]
[1734431616354,10.71823046,222.18,222.11,2.2514]
[1734431616355,2.2511,222.15,222.11,2.2514]
[1734431616556,10.71823046,222.18,222.09,3.8804]
[1734431616758,2.251,222.16,222.09,3.8804]
[1734431617057,10.71823046,222.18,222.1,2.2515]
[1734431618857,2.2512,222.14,222.1,2.2515]
[1734431620161,2.2516,222.1,222.08,2.42]
[1734431620458,10.71823046,222.18,222.07,2.42]
[1734431620854,2.2516,222.1,222.06,2.2519]
[1734431621054,10.71823046,222.15,222.06,4.6719]
[1734431621255,10.71823046,222.15,222.06,2.2519]
[1734431621556,10.71823046,222.12,222.04,2.42]
[1734431621755,10.71823046,222.12,222.03,2.42]
[1734431621954,10.71823046,222.12,222.03,4.6722]
[1734431622356,10.71823046,222.12,222.03,2.2522]
[1734431622755,10.71823046,222.09,222.0,1.523]
[1734431623058,10.71823046,222.09,222.0,3.943]
[1734431623253,10.71823046,222.09,221.94,12.27643046]
[1734431623453,10.71823046,222.06,221.95,2.36]
[1734431623653,2.2526,222.02,221.97,2.2529]
[1734431623859,10.71823046,222.18,221.94,1.5582]
[1734431623860,2.36,222.15,221.95,2.36]
[1734431624058,2.36,222.15,222.01,10.71823046]
[1734431624363,2.2516,222.12,222.03,2.2524]
[1734431624661,2.36,222.15,222.02,2.36]
[1734431625453,2.2521,222.07,222.02,4.6125]
[1734431627362,2.2519,222.07,222.02,4.6123]
[1734431627561,10.71823046,222.13,222.02,2.36]
[1734431627958,2.2515,222.11,222.06,2.2519]
[1734431628159,2.36,222.15,222.03,3.0235]
[1734431628355,2.36,222.15,222.05,2.36]
[1734431628554,2.2514,222.12,222.07,2.2518]
[1734431628854,2.36,222.15,222.07,2.2518]
[1734431629056,2.2515,222.11,222.06,2.2519]
[1734431629455,2.2515,222.11,222.05,2.36]
[1734431630062,2.2515,222.11,222.07,2.2518]
[1734431631061,2.2515,222.11,222.06,2.2519]
[1734431631867,2.2515,222.11,222.07,2.2518]
[1734431633363,10.71823046,222.16,222.05,2.36]
[1734431633767,2.2514,222.12,222.08,2.2517]
[1734431633961,10.71823046,222.16,222.05,2.36]
[1734431634465,10.71823046,222.16,222.07,2.2518]
[1734431634466,2.2514,222.12,222.07,2.2518]
[1734431635367,2.2515,222.1,222.05,2.2519]
[1734431635666,7.8948148,222.2,222.05,2.2519]
[1734431635667,7.8948148,222.2,222.05,4.6119]
[1734431635877,10.71823046,222.13,222.05,4.6119]
[1734431636573,2.2517,222.09,222.05,4.6119]
[1734431637168,10.71823046,222.13,222.05,2.36]
[1734431637372,2.2515,222.1,222.06,2.2519]
[1734431638674,10.71823046,222.13,222.05,2.36]
[1734431639476,10.71823046,222.16,222.05,2.36]
[1734431640668,2.2513,222.12,222.05,2.36]
[1734431641076,10.71823046,222.16,222.05,2.36]
[1734431641271,2.2514,222.11,222.05,2.36]
[1734431642072,2.2514,222.11,222.07,2.2517]
[1734431642683,2.2514,222.11,222.08,2.2517]
[1734431642981,10.71823046,222.16,222.05,2.36]
[1734431643178,2.2513,222.13,222.09,2.2516]
[1734431643384,10.71823046,222.16,222.09,2.2516]
[1734431643581,10.71823046,222.16,222.05,2.36]
[1734431643882,2.2515,222.11,222.07,2.2518]
[1734431644479,2.2515,222.11,222.08,2.2517]
[1734431644681,2.2511,222.14,222.05,2.36]
[1734431644882,10.71823046,222.16,222.06,2.36]
[1734431645079,10.71823046,222.16,222.07,2.2517]
[1734431645384,2.2515,222.11,222.06,2.36]
[1734431646285,2.2515,222.11,222.08,2.2517]
[1734431646485,2.2514,222.12,222.06,2.36]
[1734431646687,4.4989,222.31,222.08,10.71823046]
[1734431646881,10.71823046,222.21,222.16,2.2509]
[1734431647086,10.71823046,222.21,222.13,2.36]
[1734431647381,10.71823046,222.21,222.14,4.6111]
[1734431647584,2.2506,222.19,222.13,2.36]
[1734431647981,9.10132966,222.2,222.16,2.2508]
[1734431648388,2.36,222.27,222.15,6.85082966]
[1734431648691,6.85082966,222.22,222.19,2.2506]
[1734431648890,6.85082966,222.2,222.15,6.85082966]
[1734431649186,6.85082966,222.2,222.14,3.089]
[1734431649490,6.85082966,222.2,222.15,2.36]
[1734431649683,2.2506,222.19,222.15,4.6109]
[1734431649879,6.85082966,222.2,222.15,2.36]
[1734431650085,10.70350663,222.24,222.15,2.36]
[1734431650590,10.70350663,222.24,222.16,2.2509]
[1734431651289,2.2506,222.19,222.16,2.2509]
[1734431651791,2.2506,222.19,222.15,2.36]
[1734431652881,2.2506,222.19,222.15,4.6109]
[1734431653488,2.2506,222.19,222.15,2.36]
[1734431653687,2.2506,222.19,222.16,2.2509]
[1734431656189,10.70350663,222.24,222.14,3.8196]
[1734431656499,2.2507,222.18,222.15,2.251]
[1734431656691,2.2507,222.18,222.14,3.8196]
[1734431656692,10.70350663,222.23,222.14,1.5196]
[1734431656891,2.2509,222.16,222.12,2.2513]
[1734431657089,7.66503268,222.27,222.05,10.70350663]
[1734431657090,13.00350663,222.2,222.05,10.70350663]
[1734431657288,13.00350663,222.2,222.06,2.3]
[1734431657289,10.70350663,222.17,222.06,2.3]
[1734431657797,10.70350663,222.17,222.07,2.2517]
[1734431658093,10.70350663,222.17,222.05,10.70350663]
[1734431658398,2.2514,222.12,222.08,2.2517]
[1734431659593,2.2514,222.12,222.07,2.3]
[1734431659594,13.00350663,222.2,222.1,2.2514]
[1734431660197,13.00350663,222.2,222.12,2.2513]
[1734431660596,13.00350663,222.2,222.07,2.3]
[1734431660797,13.00350663,222.2,222.12,2.2512]
[1734431660798,2.2509,222.16,222.12,2.2512]
[1734431661799,2.3,222.2,222.08,10.70350663]
[1734431662000,10.70350663,222.23,222.09,2.3]
[1734431662396,2.2507,222.18,222.14,2.251]
[1734431662900,10.70350663,222.23,222.14,2.3]
[1734431663599,10.70350663,222.26,222.14,2.3]
[1734431663800,13.00350663,222.26,222.14,2.3]
[1734431663993,2.3,222.26,222.14,2.3]
[1734431664196,2.2505,222.21,222.17,2.2507]
[1734431665294,2.2505,222.2,222.17,2.2507]
[1734431665495,2.2505,222.2,222.16,2.2509]
[1734431665803,10.70350663,222.24,222.14,2.3]
[1734431666394,2.2507,222.19,222.14,2.3]
[1734431666998,2.2507,222.19,222.15,2.251]
[1734431668196,7.60503268,222.27,222.14,13.00350663]
[1734431668397,2.2503,222.22,222.14,13.00350663]
[1734431669505,2.2503,222.22,222.18,2.2507]
[1734431670705,2.2504,222.21,222.18,2.2507]
[1734431676214,2.2502,222.24,222.2,2.2505]
[1734431676510,6.84860772,222.28,222.21,6.84860772]
[1734431676706,2.3,222.31,222.21,6.84860772]
[1734431676905,6.84860772,222.29,222.22,2.3]
[1734431677303,2.25,222.26,222.22,2.3]
[1734431678403,2.2498,222.27,222.22,4.5503]
[1734431678713,6.84860772,222.29,222.22,4.5503]
[1734431679102,2.25,222.26,222.22,4.5503]
[1734431679307,6.84860772,222.29,222.22,4.5503]
[1734431680805,2.2498,222.27,222.23,9.09880772]
[1734431681413,2.2499,222.26,222.23,9.09880772]
[1734431682617,2.3,222.33,222.25,2.25]
[1734431682824,6.84860772,222.33,222.25,6.84860772]
[1734431683011,16.53484877,222.41,222.22,2.3]
[1734431683012,2.2486,222.39,222.31,6.84860772]
[1734431683214,6.84860772,222.42,222.36,6.84860772]
[1734431683416,6.84860772,222.43,222.36,2.3]
[1734431683616,6.84860772,222.42,222.36,2.3]
[1734431683919,6.84860772,222.4,222.36,2.3]
[1734431684121,2.2486,222.39,222.36,2.3]
[1734431684414,6.84860772,222.42,222.36,9.14860772]
[1734431684621,2.3,222.49,222.36,9.14860772]
[1734431684815,9.09690772,222.43,222.37,2.2488]
[1734431685612,2.2483,222.43,222.38,9.09730772]
[1734431685812,9.09670772,222.45,222.38,6.84860772]
[1734431686013,253.39649,222.62,222.41,2.2483]
[1734431686220,10.68010809,222.52,222.42,2.3]
[1734431686523,10.68010809,222.52,222.43,2.3]
[1734431687310,2.2474,222.51,222.43,2.3]
[1734431687517,10.68010809,222.55,222.43,2.3]
[1734431687917,2.2473,222.52,222.46,2.2479]
[1734431693116,2.2474,222.51,222.43,2.3]
[1734431694219,2.2473,222.53,222.48,2.2477]
[1734431694421,2.2473,222.53,222.48,4.5477]
[1734431694928,2.247,222.55,222.5,2.2475]
[1734431695119,10.68010809,222.61,222.48,12.98010809]
[1734431695520,2.2467,222.58,222.48,12.98010809]
[1734431696226,10.68010809,222.61,222.52,2.2472]
[1734431696427,10.68010809,222.61,222.53,2.3]
[1734431697419,2.2468,222.58,222.53,2.3]
[1734431698333,2.2468,222.58,222.53,4.5472]
[1734431699731,2.2468,222.57,222.53,4.5472]
[1734431700434,2.247,222.55,222.48,2.2476]
[1734431700636,2.247,222.55,222.46,8.49748629]
[1734431700637,10.68010809,222.55,222.49,2.3]
[1734431700827,10.68010809,222.52,222.44,2.3]
[1734431701033,2.2479,222.46,222.44,2.3]
[1734431701628,10.68010809,222.46,222.4,2.3]
[1734431702133,10.68010809,222.43,222.33,5.45190835]
[1734431702436,10.68010809,222.43,222.2,62.10010809]
[1734431702437,10.68010809,222.4,222.32,2.3]
[1734431702635,10.68010809,222.53,222.29,2.3]
[1734431702636,10.68010809,222.37,222.29,2.3]
[1734431703238,10.68010809,222.34,222.29,2.3]
[1734431703436,2.3,222.41,222.29,2.3]
[1734431703739,10.68010809,222.39,222.29,2.3]
[1734431703939,10.68010809,222.36,222.26,2.3]
[1734431704137,2.2496,222.29,222.26,2.3]
[1734431704734,12.98010809,222.36,222.26,2.3]
[1734431704938,2.2495,222.31,222.26,2.3]
[1734431705139,2.3,222.36,222.26,12.98010809]
[1734431705336,2.3,222.36,222.26,15.22990809]
[1734431705535,16.00220715,222.39,222.27,2.3]
[1734431705941,5.32209906,222.39,222.27,2.3]
[1734431706240,2.2492,222.33,222.27,2.3]
[1734431706436,10.68010809,222.35,222.24,5.31183829]
[1734431706641,10.68010809,222.35,222.24,7.61183829]
[1734431706842,5.32209906,222.39,222.26,2.2499]
[1734431707038,10.68010809,222.38,222.24,7.61183829]
[1734431707345,10.68010809,222.38,222.26,10.68010809]
[1734431707542,2.2492,222.33,222.27,2.2498]
[1734431707943,10.68010809,222.38,222.24,7.61183829]
[1734431708137,2.2494,222.31,222.25,2.2499]
[1734431708341,10.68010809,222.35,222.24,5.31183829]
[1734431708639,10.68010809,222.35,222.25,2.3]
[1734431709042,2.2493,222.32,222.25,4.55]
[1734431709245,10.68010809,222.35,222.25,2.3]
[1734431709841,2.2494,222.31,222.26,2.2499]
[1734431710045,10.68010809,222.38,222.26,10.68010809]
[1734431710638,2.2491,222.35,222.29,2.2496]
[1734431710946,10.68010809,222.38,222.3,2.3]
[1734431711242,10.68010809,222.38,222.24,5.31183829]
[1734431711243,10.68010809,222.35,222.27,2.3]
[1734431711443,5.32209906,222.39,222.27,2.3]
[1734431711444,10.68010809,222.38,222.27,2.3]
[1734431712439,2.2492,222.34,222.28,2.2497]
[1734431713140,12.98010809,222.41,222.3,2.2495]
[1734431713346,10.68010809,222.41,222.3,2.2495]
[1734431713644,2.249,222.36,222.3,2.2495]
[1734431714244,2.2488,222.38,222.32,2.2493]
[1734431714444,10.68010809,222.44,222.32,2.3]
[1734431714846,10.68010809,222.44,222.34,2.2491]
[1734431715047,10.68010809,222.44,222.32,2.3]
[1734431715351,2.2488,222.37,222.32,4.5492]
[1734431715652,10.68010809,222.35,222.24,5.31183829]
[1734431715842,10.68010809,222.32,222.24,5.31183829]